fUSD/lending_fUSD_20250702
["ID","MTS","AMOUNT","RATE_DAILY","PERIOD"]
[369083816,1751461855896,-878.48,0.0003315,12]
[369083817,1751461855905,-460.0,0.0003315,12]
[369083818,1751461855915,-460.0,0.0003315,12]
[369083819,1751461855925,-460.0,0.0003315,12]
[369083820,1751461855934,-460.0,0.0003315,12]
[369083821,1751461855944,-498.42,0.0003315,12]
[369083822,1751461855953,-460.0,0.0003315,12]
[369083823,1751461855963,-728.56,0.0003315,12]
[369083824,1751461855973,-574.83434822,0.0003315,12]
[369083825,1751461855982,-520.0,0.0003315,12]
[369083826,1751461855991,-460.0,0.0003315,12]
[369083827,1751461856000,-558.90446247,0.0003315,12]
[369083828,1751461856009,-460.0,0.0003315,12]
[369083829,1751461856019,-460.0,0.0003315,12]
[369083830,1751461856028,-460.0,0.0003315,12]
[369083831,1751461856037,-462.99,0.0003315,12]
[369083832,1751461856046,-460.0,0.0003315,12]
[369083833,1751461856055,-550.0,0.0003315,12]
[369083834,1751461856065,-460.0,0.0003315,12]
[369083835,1751461856074,-1371.6,0.0003315,12]
[369083836,1751461856083,-460.0,0.0003315,12]
[369083837,1751461856092,-460.0,0.0003315,12]
[369083838,1751461856102,-460.0,0.0003315,12]
[369083839,1751461856111,-460.0,0.0003315,12]
[369083840,1751461856121,-460.0,0.0003315,12]
[369083841,1751461856130,-460.0,0.0003315,12]
[369083842,1751461856140,-549.55,0.0003315,12]
[369083843,1751461856149,-460.0,0.0003315,12]
[369083844,1751461856158,-460.0,0.0003315,12]
[369083845,1751461856168,-460.0,0.0003315,12]
[369083846,1751461856177,-460.0,0.0003315,12]
[369083847,1751461856186,-460.0,0.0003315,12]
[369083848,1751461856195,-795.28,0.0003315,12]
[369083849,1751461856204,-460.0,0.0003315,12]
[369083850,1751461856213,-704.4,0.0003315,12]
[369083851,1751461856222,-460.0,0.0003315,12]
[369083852,1751461856231,-460.0,0.0003315,12]
[369083853,1751461856239,-550.0,0.0003315,12]
[369083854,1751461856248,-460.0,0.0003315,12]
[369083855,1751461856258,-460.0,0.0003315,12]
[369083856,1751461856267,-460.0,0.0003315,12]
[369083857,1751461856276,-460.0,0.0003315,12]
[369083858,1751461856284,-319.61303835,0.0003315,12]
[369083859,1751461856293,-460.0,0.0003315,12]
[369083860,1751461856305,-1910.3,0.0003315,12]
[369083861,1751461856314,-460.0,0.0003315,12]
[369083862,1751461856324,-460.0,0.0003315,12]
[369083863,1751461856334,-958.52,0.0003315,12]
[369083864,1751461856345,-460.0,0.0003315,12]
[369083865,1751461856354,-460.0,0.0003315,12]
[369083866,1751461856363,-460.0,0.0003315,12]
[369083867,1751461856373,-460.0,0.0003315,12]
[369083868,1751461856382,-550.0,0.0003315,12]
[369083869,1751461856392,-550.0,0.0003315,12]
[369083870,1751461856401,-550.0,0.0003315,12]
[369083871,1751461856413,-550.0,0.0003315,12]
[369083872,1751461856423,-460.0,0.0003315,12]
[369083873,1751461856432,-550.0,0.0003315,12]
[369083874,1751461856441,-460.0,0.0003315,12]
[369083875,1751461856452,-175.27396011,0.0003315,12]
[369083876,1751461856461,-504.53635801,0.0003315,12]
[369083877,1751461856470,-556.82,0.0003315,12]
[369083878,1751461856479,-1134.21,0.0003315,12]
[369083879,1751461856488,-460.0,0.0003315,12]
[369083880,1751461856497,-460.0,0.0003315,12]
[369083881,1751461856508,-864.77,0.0003315,12]
[369083882,1751461856517,-300.0,0.0003315,12]
[369083883,1751461856526,-566.40108979,0.0003315,12]
[369083884,1751461856535,-553.43208372,0.0003315,12]
[369083885,1751461856544,-460.0,0.0003315,12]
[369083886,1751461856554,-793.25,0.0003315,12]
[369083887,1751461856563,-460.0,0.0003315,12]
[369083888,1751461856573,-460.0,0.0003315,12]
[369083889,1751461856582,-460.0,0.0003315,12]
[369083890,1751461856591,-1083.61,0.0003315,12]
[369083891,1751461856601,-460.0,0.0003315,12]
[369083892,1751461856610,-460.0,0.0003315,12]
[369083893,1751461856620,-582.39,0.0003315,12]
[369083894,1751461856629,-460.0,0.0003315,12]
[369083895,1751461856638,-950.59,0.0003315,12]
[369083896,1751461856648,-460.0,0.0003315,12]
[369083897,1751461856657,-460.0,0.0003315,12]
[369083898,1751461856667,-503.31,0.0003315,12]
[369083899,1751461856676,-554.13139503,0.0003315,7]
[369083900,1751461856685,-552.60617532,0.0003315,12]
[369083901,1751461856694,-460.0,0.0003315,12]
[369083902,1751461856703,-460.0,0.0003315,12]
[369083903,1751461856713,-480.03,0.0003315,12]
[369083904,1751461856722,-323.19276569,0.0003315,12]
[369083905,1751461856731,-460.0,0.0003315,12]
[369083906,1751461856740,-759.24,0.0003315,12]
[369083907,1751461856750,-460.0,0.0003315,12]
[369083908,1751461856759,-460.0,0.0003315,12]
[369083909,1751461856768,-460.0,0.0003315,12]
[369083910,1751461856777,-460.0,0.0003315,12]
[369083911,1751461856786,-460.0,0.0003315,12]
[369083912,1751461856795,-224.05125224,0.0003315,2]
[369083913,1751461856804,-460.0,0.0003315,12]
[369083914,1751461856814,-460.0,0.0003315,12]
[369083915,1751461856834,-694.68,0.0003315,12]
[369083916,1751461856847,-460.0,0.0003315,12]
[369083917,1751461856856,-460.0,0.0003315,12]
[369083918,1751461856865,-460.0,0.0003315,12]
[369083919,1751461856875,-1242.68,0.0003315,12]
[369083920,1751461856886,-712.1,0.0003315,12]
[369083921,1751461856896,-502.12,0.0003315,12]
[369083922,1751461856905,-460.0,0.0003315,12]
[369083923,1751461856919,-1580.79,0.0003315,12]
[369083924,1751461856929,-550.0,0.0003315,12]
[369083925,1751461856939,-638.7,0.0003315,12]
[369083926,1751461856948,-508.21,0.0003315,12]
[369083927,1751461856959,-557.14476741,0.0003315,12]
[369083928,1751461856969,-1539.52,0.0003315,12]
[369083929,1751461856979,-460.0,0.0003315,12]
[369083930,1751461856988,-627.29,0.0003315,12]
[369083931,1751461856998,-550.0,0.0003315,12]
[369083932,1751461857007,-460.0,0.0003315,12]
[369083933,1751461857017,-460.0,0.0003315,12]
[369083934,1751461857027,-555.1930669,0.0003315,12]
[369083935,1751461857036,-460.0,0.0003315,12]
[369083936,1751461857046,-565.78,0.0003315,12]
[369083937,1751461857055,-460.0,0.0003315,12]
[369083938,1751461857065,-550.0,0.0003315,12]
[369083939,1751461857074,-460.0,0.0003315,12]
[369083940,1751461857083,-460.0,0.0003315,12]
[369083941,1751461857093,-529.18,0.0003315,12]
[369083942,1751461857110,-607.76,0.0003315,12]
[369083943,1751461857129,-460.0,0.0003315,12]
[369083944,1751461857139,-460.0,0.0003315,12]
[369083945,1751461857149,-460.0,0.0003315,12]
[369083946,1751461857158,-553.59,0.0003315,12]
[369083947,1751461857168,-460.0,0.0003315,12]
[369083948,1751461857177,-460.0,0.0003315,12]
[369083949,1751461857187,-985.75,0.0003315,12]
[369083950,1751461857197,-594.38,0.0003315,12]
[369083951,1751461857206,-460.0,0.0003315,12]
[369083952,1751461857216,-550.0,0.0003315,12]
[369083953,1751461857225,-460.0,0.0003315,12]
[369083954,1751461857235,-460.0,0.0003315,12]
[369083955,1751461857244,-460.0,0.0003315,12]
[369083956,1751461857254,-460.0,0.0003315,12]
[369083957,1751461857264,-1010.82,0.0003315,10]
[369083958,1751461857273,-460.0,0.0003315,12]
[369083959,1751461857283,-460.0,0.0003315,12]
[369083960,1751461857293,-461.03,0.0003315,12]
[369083961,1751461857303,-460.0,0.0003315,12]
[369083962,1751461857312,-460.0,0.0003315,12]
[369083963,1751461857321,-460.0,0.0003315,12]
[369083964,1751461857331,-626.96,0.0003315,12]
[369083965,1751461857341,-460.0,0.0003315,12]
[369083966,1751461857351,-550.0,0.0003315,12]
[369083967,1751461857361,-460.0,0.0003315,12]
[369083968,1751461857370,-356.19535105,0.0003315,12]
[369083969,1751461857380,-460.0,0.0003315,12]
[369083970,1751461857390,-460.0,0.0003315,12]
[369083971,1751461857399,-460.0,0.0003315,12]
[369083972,1751461857408,-500.0,0.0003315,12]
[369083973,1751461857418,-1069.03,0.0003315,12]
[369083974,1751461857427,-460.0,0.0003315,12]
[369083975,1751461857437,-460.0,0.0003315,12]
[369083976,1751461857446,-820.11,0.0003315,12]
[369083977,1751461857455,-460.0,0.0003315,12]
[369083978,1751461857465,-460.0,0.0003315,12]
[369083979,1751461857474,-474.84,0.0003315,12]
[369083980,1751461857483,-567.93,0.0003315,12]
[369083981,1751461857493,-460.0,0.0003315,12]
[369083982,1751461857502,-460.0,0.0003315,12]
[369083983,1751461857511,-460.0,0.0003315,12]
[369083984,1751461857520,-460.0,0.0003315,12]
[369083985,1751461857530,-460.0,0.0003315,12]
[369083986,1751461857539,-222.60204206,0.0003315,12]
[369083987,1751461857549,-460.0,0.0003315,12]
[369083988,1751461857558,-460.0,0.0003315,12]
[369083989,1751461857568,-1686.95,0.0003315,12]
[369083990,1751461857578,-460.0,0.0003315,12]
[369083991,1751461857587,-1397.36,0.0003315,12]
[369083992,1751461857597,-460.0,0.0003315,12]
[369083993,1751461857606,-460.0,0.0003315,12]
[369083994,1751461857615,-762.46,0.0003315,12]
[369083995,1751461857625,-159.95162543,0.0003315,12]
[369083996,1751461857636,-460.0,0.0003315,12]
[369083997,1751461857646,-508.94,0.0003315,12]
[369083998,1751461857657,-460.0,0.0003315,12]
[369083999,1751461857667,-557.64828727,0.0003315,12]
[369084000,1751461857678,-460.0,0.0003315,12]
[369084001,1751461857692,-460.0,0.0003315,12]
[369084002,1751461857702,-553.49912821,0.0003315,12]
[369084003,1751461857715,-460.0,0.0003315,12]
[369084004,1751461857726,-1101.8,0.0003315,12]
[369084005,1751461857736,-460.0,0.0003315,12]
[369084006,1751461857746,-460.0,0.0003315,12]
[369084007,1751461857758,-460.0,0.0003315,12]
[369084008,1751461857768,-562.91,0.0003315,12]
[369084009,1751461857779,-460.0,0.0003315,12]
[369084010,1751461857790,-332.10528616,0.0003315,12]
[369084011,1751461857800,-460.0,0.0003315,12]
[369084012,1751461857810,-1187.75,0.0003315,12]
[369084013,1751461857819,-460.0,0.0003315,12]
[369084014,1751461857829,-1405.32,0.0003315,12]
[369084015,1751461857839,-460.0,0.0003315,12]
[369084016,1751461857849,-460.0,0.0003315,12]
[369084017,1751461857859,-1238.87,0.0003315,12]
[369084018,1751461857869,-683.11,0.0003315,12]
[369084019,1751461857880,-851.5,0.0003315,12]
[369084020,1751461857890,-460.0,0.0003315,12]
[369084021,1751461857900,-1078.77,0.0003315,12]
[369084022,1751461857910,-460.0,0.0003315,12]
[369084023,1751461857920,-662.15,0.0003315,12]
[369084024,1751461857931,-460.0,0.0003315,12]
[369084025,1751461857941,-463.64,0.0003315,12]
[369084026,1751461857951,-1630.15,0.0003315,12]
[369084027,1751461857962,-460.0,0.0003315,12]
[369084028,1751461857972,-460.0,0.0003315,12]
[369084029,1751461857982,-520.0,0.0003315,12]
[369084030,1751461857991,-553.41392031,0.0003315,12]
[369084031,1751461858002,-1017.62,0.0003315,12]
[369084032,1751461858012,-527.48,0.0003315,12]
[369084033,1751461858021,-460.0,0.0003315,12]
[369084034,1751461858031,-217.154687,0.0003315,12]
[369084035,1751461858040,-438.62397857,0.0003315,12]
[369084036,1751461858050,-460.0,0.0003315,12]
[369084037,1751461858060,-460.0,0.0003315,12]
[369084038,1751461858070,-460.0,0.0003315,12]
[369084039,1751461858080,-460.0,0.0003315,12]
[369084040,1751461858090,-460.0,0.0003315,12]
[369084041,1751461858099,-460.0,0.0003315,12]
[369084042,1751461858110,-460.0,0.0003315,12]
[369084043,1751461858120,-460.0,0.0003315,12]
[369084044,1751461858130,-460.0,0.0003315,12]
[369084045,1751461858140,-608.54,0.0003315,12]
[369084046,1751461858149,-460.0,0.0003315,12]
[369084047,1751461858159,-467.94,0.0003315,12]
[369084048,1751461858169,-460.0,0.0003315,12]
[369084049,1751461858179,-460.0,0.0003315,12]
[369084050,1751461858189,-1537.63,0.0003315,12]
[369084051,1751461858200,-200.0,0.0003315,12]
[369084052,1751461858210,-1513.71,0.0003315,12]
[369084053,1751461858220,-460.0,0.0003315,12]
[369084054,1751461858230,-460.0,0.0003315,12]
[369084055,1751461858240,-553.32535297,0.0003315,12]
[369084056,1751461858250,-557.3,0.0003315,12]
[369084057,1751461858260,-460.0,0.0003315,12]
[369084058,1751461858270,-2974.55,0.0003315,12]
[369084059,1751461858280,-5467.22,0.0003315,12]
[369084060,1751461858290,-1527.48,0.0003315,12]
[369084061,1751461858300,-460.0,0.0003315,12]
[369084062,1751461858311,-1306.71,0.0003315,12]
[369084063,1751461858321,-575.01,0.0003315,12]
[369084064,1751461858331,-517.61394156,0.0003315,12]
[369084065,1751461858341,-460.0,0.0003315,12]
[369084066,1751461858351,-1333.33,0.0003315,12]
[369084067,1751461858360,-460.0,0.0003315,12]
[369084068,1751461858370,-1155.68,0.0003315,12]
[369084069,1751461858380,-520.0,0.0003315,12]
[369084070,1751461858390,-817.02,0.0003315,12]
[369084071,1751461858399,-1001.47,0.0003315,12]
[369084072,1751461858409,-1231.62,0.0003315,12]
[369084073,1751461858419,-460.0,0.0003315,12]
[369084074,1751461858428,-885.45,0.0003315,12]
[369084075,1751461858438,-520.0,0.0003315,12]
[369084076,1751461858448,-1580.34,0.0003315,12]
[369084077,1751461858458,-460.0,0.0003315,12]
[369084078,1751461858468,-3123.07,0.0003315,12]
[369084079,1751461858478,-551.4100046,0.0003315,12]
[369084080,1751461858488,-460.0,0.0003315,12]
[369084081,1751461858498,-460.0,0.0003315,12]
[369084082,1751461858507,-460.0,0.0003315,12]
[369084083,1751461858517,-520.0,0.0003315,12]
[369084084,1751461858527,-585.9,0.0003315,12]
[369084085,1751461858536,-3665.44,0.0003315,12]
[369084086,1751461858547,-460.0,0.0003315,12]
[369084087,1751461858556,-591.24011988,0.0003315,12]
[369084088,1751461858566,-1280.96,0.0003315,12]
[369084089,1751461858576,-3077.93,0.0003315,12]
[369084090,1751461858586,-460.0,0.0003315,12]
[369084091,1751461858596,-523.33,0.0003315,12]
[369084092,1751461858606,-460.0,0.0003315,12]
[369084093,1751461858616,-460.0,0.0003315,12]
[369084094,1751461858626,-518.22,0.0003315,12]
[369084095,1751461858636,-1596.79,0.0003315,12]
[369084096,1751461858646,-460.0,0.0003315,12]
[369084097,1751461858656,-460.0,0.0003315,12]
[369084098,1751461858665,-3060.73,0.0003315,12]
[369084099,1751461858675,-2063.24,0.0003315,12]
[369084100,1751461858686,-762.04,0.0003315,12]
[369084101,1751461858696,-460.0,0.0003315,12]
[369084102,1751461858706,-683.58,0.0003315,12]
[369084103,1751461858716,-460.0,0.0003315,12]
[369084104,1751461858727,-550.0,0.0003315,12]
[369084105,1751461858737,-1055.36,0.0003315,12]
[369084106,1751461858747,-460.0,0.0003315,12]
[369084107,1751461858757,-550.0,0.0003315,12]
[369084108,1751461858768,-460.0,0.0003315,12]
[369084109,1751461858778,-4094.89,0.0003315,12]
[369084110,1751461858788,-520.0,0.0003315,12]
[369084111,1751461858798,-460.0,0.0003315,12]
[369084112,1751461858808,-1162.79,0.0003315,12]
[369084113,1751461858818,-925.98,0.0003315,12]
[369084114,1751461858828,-460.0,0.0003315,12]
[369084115,1751461858838,-2281.58,0.0003315,12]
[369084116,1751461858848,-658.5,0.0003315,12]
[369084117,1751461858858,-460.0,0.0003315,12]
[369084118,1751461858868,-460.0,0.0003315,12]
[369084119,1751461858878,-520.0,0.0003315,12]
[369084120,1751461858890,-460.0,0.0003315,12]
[369084121,1751461858900,-460.0,0.0003315,12]
[369084122,1751461858910,-460.0,0.0003315,12]
[369084123,1751461858920,-460.0,0.0003315,12]
[369084124,1751461858931,-460.0,0.0003315,12]
[369084125,1751461858941,-5725.79,0.0003315,12]
[369084126,1751461858951,-1397.04,0.0003315,12]
[369084127,1751461858963,-811.99,0.0003315,12]
[369084128,1751461858973,-460.0,0.0003315,12]
[369084129,1751461858983,-460.0,0.0003315,12]
[369084130,1751461858993,-1636.62,0.0003315,12]
[369084131,1751461859003,-460.0,0.0003315,12]
[369084132,1751461859013,-1582.04,0.0003315,12]
[369084133,1751461859024,-460.0,0.0003315,12]
[369084134,1751461859035,-4601.53,0.0003315,12]
[369084135,1751461859045,-460.0,0.0003315,12]
[369084136,1751461859055,-519.89042047,0.0003315,12]
[369084137,1751461859065,-520.0,0.0003315,12]
[369084138,1751461859074,-8480.08,0.0003315,12]
[369084139,1751461859084,-460.0,0.0003315,12]
[369084140,1751461859094,-552.85634952,0.0003315,12]
[369084141,1751461859104,-731.19,0.0003315,12]
[369084142,1751461859114,-460.0,0.0003315,12]
[369084143,1751461859124,-1604.32,0.0003315,12]
[369084144,1751461859134,-460.0,0.0003315,12]
[369084145,1751461859144,-460.0,0.0003315,12]
[369084146,1751461859155,-2613.27,0.0003315,12]
[369084147,1751461859164,-460.0,0.0003315,12]
[369084148,1751461859174,-750.7,0.0003315,12]
[369084149,1751461859183,-1940.84,0.0003315,12]
[369084150,1751461859193,-460.0,0.0003315,12]
[369084151,1751461859202,-550.0,0.0003315,12]
[369084152,1751461859212,-460.0,0.0003315,12]
[369084153,1751461859223,-1250.67,0.0003315,12]
[369084154,1751461859232,-3292.69,0.0003315,12]
[369084155,1751461859242,-460.0,0.0003315,12]
[369084156,1751461859251,-698.35,0.0003315,12]
[369084157,1751461859261,-460.0,0.0003315,12]
[369084158,1751461859270,-460.0,0.0003315,12]
[369084159,1751461859279,-1542.6,0.0003315,12]
[369084160,1751461859292,-460.0,0.0003315,12]
[369084161,1751461859303,-1564.55,0.0003315,12]
[369084162,1751461859315,-913.77,0.0003315,12]
[369084163,1751461859326,-740.82,0.0003315,12]
[369084164,1751461859336,-460.0,0.0003315,12]
[369084165,1751461859347,-550.0,0.0003315,12]
[369084166,1751461859356,-504.15,0.0003315,12]
[369084167,1751461859367,-460.0,0.0003315,12]
[369084168,1751461859377,-654.61,0.0003315,12]
[369084169,1751461859387,-460.0,0.0003315,12]
[369084170,1751461859398,-460.0,0.0003315,12]
[369084171,1751461859409,-924.19,0.0003315,12]
[369084172,1751461859419,-1058.08,0.0003315,12]
[369084173,1751461859430,-460.0,0.0003315,12]
[369084174,1751461859442,-2980.86,0.0003315,12]
[369084175,1751461859452,-888.09,0.0003315,12]
[369084176,1751461859461,-460.0,0.0003315,12]
[369084177,1751461859471,-553.660825,0.0003315,12]
[369084178,1751461859482,-976.79,0.0003315,12]
[369084179,1751461859492,-460.0,0.0003315,12]
[369084180,1751461859502,-556.6718191,0.0003315,2]
[369084181,1751461859513,-699.06,0.0003315,12]
[369084182,1751461859523,-460.0,0.0003315,12]
[369084183,1751461859533,-1071.77,0.0003315,12]
[369084184,1751461859544,-1997.55,0.0003315,12]
[369084185,1751461859554,-460.0,0.0003315,12]
[369084186,1751461859564,-550.0,0.0003315,12]
[369084187,1751461859573,-460.0,0.0003315,12]
[369084188,1751461859583,-1614.08,0.0003315,12]
[369084189,1751461859594,-460.0,0.0003315,12]
[369084190,1751461859605,-1937.7,0.0003315,12]
[369084191,1751461859615,-1131.85,0.0003315,12]
[369084192,1751461859626,-460.0,0.0003315,12]
[369084193,1751461859636,-563.2,0.0003315,12]
[369084194,1751461859646,-460.0,0.0003315,12]
[369084195,1751461859655,-460.0,0.0003315,12]
[369084196,1751461859666,-520.0,0.0003315,12]
[369084197,1751461859681,-1856.25,0.0003315,12]
[369084198,1751461859691,-555.24845937,0.0003315,12]
[369084199,1751461859701,-460.0,0.0003315,12]
[369084200,1751461859711,-628.55,0.0003315,12]
[369084201,1751461859721,-1652.06,0.0003315,12]
[369084202,1751461859731,-509.59,0.0003315,12]
[369084203,1751461859741,-460.0,0.0003315,12]
[369084204,1751461859752,-460.0,0.0003315,12]
[369084205,1751461859763,-744.49,0.0003315,12]
[369084206,1751461859774,-520.0,0.0003315,12]
[369084207,1751461859784,-14337.64,0.0003315,12]
[369084208,1751461859794,-2455.06,0.0003315,12]
[369084209,1751461859806,-460.0,0.0003315,12]
[369084210,1751461859816,-460.0,0.0003315,12]
[369084211,1751461859826,-2204.26,0.0003315,12]
[369084212,1751461860126,-1370.54,0.0003315,12]
[369084213,1751461860146,-460.0,0.0003315,12]
[369084214,1751461860155,-460.0,0.0003315,12]
[369084215,1751461860165,-915.96,0.0003315,12]
[369084216,1751461860174,-550.0,0.0003315,12]
[369084217,1751461860184,-460.0,0.0003315,12]
[369084218,1751461860193,-1254.67,0.0003315,12]
[369084219,1751461860202,-318.00469558,0.0003315,12]
[369084220,1751461860213,-460.0,0.0003315,12]
[369084221,1751461860222,-2861.45,0.0003315,12]
[369084222,1751461860232,-347.60085391,0.0003315,12]
[369084223,1751461860241,-460.0,0.0003315,12]
[369084224,1751461860251,-554.52,0.0003315,12]
[369084225,1751461860261,-460.0,0.0003315,12]
[369084226,1751461860270,-460.0,0.0003315,12]
[369084227,1751461860280,-460.0,0.0003315,12]
[369084228,1751461860289,-562.92,0.0003315,12]
[369084229,1751461860299,-5018.91,0.0003315,12]
[369084230,1751461860310,-554.29925752,0.0003315,12]
[369084231,1751461860320,-3071.63,0.0003315,12]
[369084232,1751461860330,-9031.28,0.0003315,12]
[369084233,1751461860341,-460.0,0.0003315,12]
[369084234,1751461860352,-3123.89,0.0003315,12]
[369084235,1751461860361,-2011.36,0.0003315,12]
[369084236,1751461860372,-460.0,0.0003315,12]
[369084237,1751461860382,-1159.67,0.0003315,12]
[369084238,1751461860391,-748.35,0.0003315,12]
[369084239,1751461860401,-460.0,0.0003315,12]
[369084240,1751461860410,-460.0,0.0003315,12]
[369084241,1751461860420,-1976.17,0.0003315,12]
[369084242,1751461860430,-1539.39,0.0003315,12]
[369084243,1751461860442,-460.0,0.0003315,12]
[369084244,1751461860454,-15106.95,0.0003315,12]
[369084245,1751461860464,-460.0,0.0003315,12]
[369084246,1751461860474,-522.36907238,0.0003315,12]
[369084247,1751461860483,-460.0,0.0003315,12]
[369084248,1751461860493,-1046.22,0.0003315,12]
[369084249,1751461860503,-460.0,0.0003315,12]
[369084250,1751461860513,-233.60628213,0.0003315,12]
[369084251,1751461860524,-2599.47,0.0003315,12]
[369084252,1751461860535,-460.0,0.0003315,12]
[369084253,1751461860545,-1910.73,0.0003315,12]
[369084254,1751461860555,-1297.63,0.0003315,12]
[369084255,1751461860565,-639.56,0.0003315,12]
[369084256,1751461860574,-730.55,0.0003315,12]
[369084257,1751461860584,-460.0,0.0003315,12]
[369084258,1751461860593,-1382.67,0.0003315,12]
[369084259,1751461860604,-460.0,0.0003315,12]
[369084260,1751461860614,-2060.32,0.0003315,12]
[369084261,1751461860623,-460.0,0.0003315,12]
[369084262,1751461860633,-4097.57,0.0003315,12]
[369084263,1751461860643,-10032.7,0.0003315,12]
[369084264,1751461860652,-575.08,0.0003315,12]
[369084265,1751461860662,-460.0,0.0003315,12]
[369084266,1751461860671,-460.0,0.0003315,12]
[369084267,1751461860682,-1557.34,0.0003315,12]
[369084268,1751461860692,-1998.16,0.0003315,12]
[369084269,1751461860703,-978.86,0.0003315,12]
[369084270,1751461860712,-460.0,0.0003315,12]
[369084271,1751461860722,-1553.85,0.0003315,12]
[369084272,1751461860731,-1962.54,0.0003315,12]
[369084273,1751461860740,-4130.51,0.0003315,12]
[369084274,1751461860750,-2351.4,0.0003315,12]
[369084275,1751461860760,-460.0,0.0003315,12]
[369084276,1751461860770,-460.0,0.0003315,12]
[369084277,1751461860779,-1628.23,0.0003315,12]
[369084278,1751461860789,-521.81920397,0.0003315,12]
[369084279,1751461860799,-460.0,0.0003315,12]
[369084280,1751461860809,-1873.63,0.0003315,12]
[369084281,1751461860818,-460.0,0.0003315,12]
[369084282,1751461860828,-460.0,0.0003315,12]
[369084283,1751461860838,-1647.64,0.0003315,12]
[369084284,1751461860847,-1475.74,0.0003315,12]
[369084285,1751461860858,-1289.18,0.0003315,12]
[369084286,1751461860868,-460.0,0.0003315,12]
[369084287,1751461860879,-1252.52,0.0003315,12]
[369084288,1751461860890,-460.0,0.0003315,12]
[369084289,1751461860899,-460.0,0.0003315,12]
[369084290,1751461860909,-460.0,0.0003315,12]
[369084291,1751461860918,-1646.89,0.0003315,12]
[369084292,1751461860929,-460.0,0.0003315,12]
[369084293,1751461860939,-1136.06,0.0003315,12]
[369084294,1751461860948,-1446.68,0.0003315,12]
[369084295,1751461860960,-524.80953107,0.0003315,12]
[369084296,1751461860970,-970.79,0.0003315,12]
[369084297,1751461860980,-460.0,0.0003315,12]
[369084298,1751461860989,-1436.23,0.0003315,12]
[369084299,1751461860999,-613.06,0.0003315,12]
[369084300,1751461861010,-1105.99,0.0003315,12]
[369084301,1751461861020,-460.0,0.0003315,12]
[369084302,1751461861029,-1559.26,0.0003315,12]
[369084303,1751461861039,-558.55350326,0.0003315,12]
[369084304,1751461861048,-460.0,0.0003315,12]
[369084305,1751461861058,-520.0,0.0003315,12]
[369084306,1751461861067,-670.85,0.0003315,12]
[369084307,1751461861077,-460.0,0.0003315,12]
[369084308,1751461861087,-2146.77,0.0003315,12]
[369084309,1751461861096,-5121.51,0.0003315,12]
[369084310,1751461861106,-460.0,0.0003315,12]
[369084311,1751461861116,-1038.63,0.0003315,12]
[369084312,1751461861126,-1918.91,0.0003315,12]
[369084313,1751461861136,-1564.35,0.0003315,12]
[369084314,1751461861145,-909.23,0.0003315,12]
[369084315,1751461861155,-460.0,0.0003315,12]